fUST/lending_fUST_20250914
["ID","MTS","AMOUNT","RATE_DAILY","PERIOD"]
[385433957,1757847041229,-480.0,0.00021917,2]
[385433958,1757847041238,-480.0,0.00021917,2]
[385433959,1757847041247,-643.08,0.00021917,2]
[385433960,1757847041256,-480.0,0.00021917,2]
[385433961,1757847041265,-480.0,0.00021917,2]
[385433962,1757847041274,-480.0,0.00021917,2]
[385433963,1757847041283,-480.0,0.00021917,2]
[385433964,1757847041291,-480.0,0.00021917,2]
[385433965,1757847041301,-480.0,0.00021917,2]
[385433966,1757847041310,-480.0,0.00021917,2]
[385433967,1757847041319,-480.0,0.00021917,2]
[385433968,1757847041328,-480.0,0.00021917,2]
[385433969,1757847041337,-510.71,0.00021917,2]
[385433970,1757847041346,-480.0,0.00021917,2]
[385433971,1757847041355,-480.0,0.00021917,2]
[385433972,1757847041364,-480.0,0.00021917,2]
[385433973,1757847041373,-819.88,0.00021917,2]
[385433974,1757847041383,-480.0,0.00021917,2]
[385433975,1757847041392,-480.0,0.00021917,2]
[385433976,1757847041402,-480.0,0.00021917,2]
[385433977,1757847041411,-480.0,0.00021917,2]
[385433978,1757847041420,-480.0,0.00021917,2]
[385433979,1757847041429,-480.0,0.00021917,2]
[385433980,1757847041438,-480.0,0.00021917,2]
[385433981,1757847041447,-480.0,0.00021917,2]
[385433982,1757847041456,-480.0,0.00021917,2]
[385433983,1757847041465,-480.47260619,0.00021917,2]
[385433984,1757847041475,-1013.94,0.00021917,2]
[385433985,1757847041484,-496.18587711,0.00021917,2]
[385433986,1757847041493,-480.0,0.00021917,2]
[385433987,1757847041502,-480.0,0.00021917,2]
[385433988,1757847041511,-857.5,0.00021917,2]
[385433989,1757847041520,-480.0,0.00021917,2]
[385433990,1757847041529,-480.0,0.00021917,2]
[385433991,1757847041538,-480.0,0.00021917,2]
[385433992,1757847041547,-480.0,0.00021917,2]
[385433993,1757847041555,-480.0,0.00021917,2]
[385433994,1757847041564,-1132.55,0.00021917,2]
[385433995,1757847041573,-480.0,0.00021917,2]
[385433996,1757847041582,-480.0,0.00021917,2]
[385433997,1757847041591,-480.0,0.00021917,2]
[385433998,1757847041599,-480.0,0.00021917,2]
[385433999,1757847041608,-480.0,0.00021917,2]
[385434000,1757847041617,-480.0,0.00021917,2]
[385434001,1757847041626,-446.43501843,0.00021917,2]
[385434002,1757847041635,-480.0,0.00021917,2]
[385434003,1757847041644,-480.0,0.00021917,2]
[385434004,1757847041653,-1152.28,0.00021917,2]
[385434005,1757847041662,-509.5,0.00021917,2]
[385434006,1757847041671,-480.0,0.00021917,2]
[385434007,1757847041680,-480.0,0.00021917,2]
[385434008,1757847041689,-1189.25,0.00021917,2]
[385434009,1757847041698,-500.0,0.00021917,2]
[385434010,1757847041707,-480.0,0.00021917,2]
[385434011,1757847041717,-480.0,0.00021917,2]
[385434012,1757847041726,-480.0,0.00021917,2]
[385434013,1757847041735,-914.96,0.00021917,2]
[385434014,1757847041744,-482.04415518,0.00021917,2]
[385434015,1757847041753,-480.0,0.00021917,2]
[385434016,1757847041762,-480.0,0.00021917,2]
[385434017,1757847041770,-480.0,0.00021917,2]
[385434018,1757847041780,-480.0,0.00021917,2]
[385434019,1757847041789,-488.13550477,0.00021917,2]
[385434020,1757847041798,-480.0,0.00021917,2]
[385434021,1757847041807,-480.0,0.00021917,2]
[385434022,1757847041816,-2411.26,0.00021917,2]
[385434023,1757847041825,-480.0,0.00021917,2]
[385434024,1757847041834,-491.91650673,0.00021917,2]
[385434025,1757847041843,-480.0,0.00021917,2]
[385434026,1757847041853,-480.0,0.00021917,2]
[385434027,1757847041862,-480.0,0.00021917,2]
[385434028,1757847041871,-480.0,0.00021917,2]
[385434029,1757847041880,-480.0,0.00021917,2]
[385434030,1757847041890,-480.0,0.00021917,2]
[385434031,1757847041899,-480.0,0.00021917,2]
[385434032,1757847041908,-1003.50289131,0.00021917,2]
[385434033,1757847041917,-482.320897,0.00021917,2]
[385434034,1757847041926,-480.0,0.00021917,2]
[385434035,1757847041935,-480.89282975,0.00021917,2]
[385434036,1757847041944,-480.0,0.00021917,2]
[385434037,1757847041953,-480.0,0.00021917,2]
[385434038,1757847041962,-480.0,0.00021917,2]
[385434039,1757847041971,-480.0,0.00021917,2]
[385434040,1757847041980,-234.39461144,0.00021917,2]
[385434041,1757847041989,-480.0,0.00021917,2]
[385434042,1757847041998,-480.0,0.00021917,2]
[385434043,1757847042007,-480.0,0.00021917,2]
[385434044,1757847042016,-480.0,0.00021917,2]
[385434045,1757847042030,-480.73065836,0.00021917,2]
[385434046,1757847042039,-480.0,0.00021917,2]
[385434047,1757847042049,-485.38389311,0.00021917,2]
[385434048,1757847042057,-480.0,0.00021917,2]
[385434049,1757847042067,-480.0,0.00021917,2]
[385434050,1757847042076,-480.0,0.00021917,2]
[385434051,1757847042085,-480.0,0.00021917,2]
[385434052,1757847042094,-808.99,0.00021917,2]
[385434053,1757847042103,-480.0,0.00021917,2]
[385434054,1757847042112,-481.73738525,0.00021917,2]
[385434055,1757847042121,-481.63240129,0.00021917,2]
[385434056,1757847042130,-480.0,0.00021917,2]
[385434057,1757847042139,-480.0,0.00021917,2]
[385434058,1757847042148,-480.0,0.00021917,2]
[385434059,1757847042157,-481.34380821,0.00021917,2]
[385434060,1757847042166,-480.0,0.00021917,2]
[385434061,1757847042176,-492.88536601,0.00021917,2]
[385434062,1757847042185,-480.0,0.00021917,2]
[385434063,1757847042194,-551.25026555,0.00021917,2]
[385434064,1757847042203,-500.0,0.00021917,2]
[385434065,1757847042212,-480.0,0.00021917,2]
[385434066,1757847042221,-480.0,0.00021917,2]
[385434067,1757847042230,-480.0,0.00021917,2]
[385434068,1757847042238,-483.56759913,0.00021917,2]
[385434069,1757847042248,-480.0,0.00021917,2]
[385434070,1757847042257,-480.86638364,0.00021917,2]
[385434071,1757847042266,-687.97,0.00021917,2]
[385434072,1757847042275,-480.0,0.00021917,2]
[385434073,1757847042284,-481.27836196,0.00021917,2]
[385434074,1757847042293,-481.61518007,0.00021917,2]
[385434075,1757847042302,-480.0,0.00021917,2]
[385434076,1757847042311,-480.0,0.00021917,2]
[385434077,1757847042320,-480.0,0.00021917,2]
[385434078,1757847042329,-480.0,0.00021917,2]
[385434079,1757847042338,-480.0,0.00021917,2]
[385434080,1757847042347,-481.79283805,0.00021917,2]
[385434081,1757847042356,-480.0,0.00021917,2]
[385434082,1757847042365,-480.0,0.00021917,2]
[385434083,1757847042374,-151.0,0.00021917,2]
[385434084,1757847042383,-221.392579,0.00021917,2]
[385434085,1757847042391,-480.0,0.00021917,2]
[385434086,1757847042401,-480.0,0.00021917,2]
[385434087,1757847042410,-480.0,0.00021917,2]
[385434088,1757847042420,-480.0,0.00021917,2]
[385434089,1757847042429,-480.0,0.00021917,2]
[385434090,1757847042437,-480.0,0.00021917,2]
[385434091,1757847042446,-481.72642853,0.00021917,2]
[385434092,1757847042456,-480.0,0.00021917,2]
[385434093,1757847042465,-480.0,0.00021917,2]
[385434094,1757847042474,-1025.01,0.00021917,2]
[385434095,1757847042484,-492.61935095,0.00021917,2]
[385434096,1757847042493,-480.0,0.00021917,2]
[385434097,1757847042502,-481.41228729,0.00021917,2]
[385434098,1757847042511,-151.0,0.00021917,2]
[385434099,1757847042520,-480.0,0.00021917,2]
[385434100,1757847042529,-480.0,0.00021917,2]
[385434101,1757847042538,-480.0,0.00021917,2]
[385434102,1757847042548,-151.0,0.00021917,2]
[385434103,1757847042557,-480.0,0.00021917,2]
[385434104,1757847042566,-480.0,0.00021917,2]
[385434105,1757847042575,-481.39870983,0.00021917,2]
[385434106,1757847042584,-480.0,0.00021917,2]
[385434107,1757847042593,-480.0,0.00021917,2]
[385434108,1757847042601,-480.0,0.00021917,2]
[385434109,1757847042610,-690.5,0.00021917,2]
[385434110,1757847042619,-1016.64,0.00021917,2]
[385434111,1757847042628,-480.0,0.00021917,2]
[385434112,1757847042637,-480.0,0.00021917,2]
[385434113,1757847042647,-480.0,0.00021917,2]
[385434114,1757847042655,-480.0,0.00021917,2]
[385434115,1757847042664,-480.0,0.00021917,2]
[385434116,1757847042673,-480.0,0.00021917,2]
[385434117,1757847042682,-480.0,0.00021917,2]
[385434118,1757847042691,-480.44893177,0.00021917,2]
[385434119,1757847042700,-480.0,0.00021917,2]
[385434120,1757847042710,-1368.78,0.00021917,2]
[385434121,1757847042718,-480.0,0.00021917,2]
[385434122,1757847042727,-480.0,0.00021917,2]
[385434123,1757847042736,-480.0,0.00021917,2]
[385434124,1757847042745,-480.0,0.00021917,2]
[385434125,1757847042754,-480.0,0.00021917,2]
[385434126,1757847042763,-480.78572023,0.00021917,2]
[385434127,1757847042772,-480.88467026,0.00021917,2]
[385434128,1757847042781,-936.39,0.00021917,2]
[385434129,1757847042791,-485.84051074,0.00021917,2]
[385434130,1757847042800,-666.38,0.00021917,2]
[385434131,1757847042809,-480.0,0.00021917,2]
[385434132,1757847042817,-480.0,0.00021917,2]
[385434133,1757847042826,-481.50499984,0.00021917,2]
[385434134,1757847042836,-544.42,0.00021917,2]
[385434135,1757847042845,-480.0,0.00021917,2]
[385434136,1757847042854,-480.0,0.00021917,2]
[385434137,1757847042863,-151.0,0.00021917,2]
[385434138,1757847042872,-480.0,0.00021917,2]
[385434139,1757847042882,-295.983476,0.00021917,2]
[385434140,1757847042891,-480.0,0.00021917,2]
[385434141,1757847042899,-480.0,0.00021917,2]
[385434142,1757847042909,-480.0,0.00021917,2]
[385434143,1757847042917,-667.44,0.00021917,2]
[385434144,1757847042926,-1258.04,0.00021917,2]
[385434145,1757847042935,-480.0,0.00021917,2]
[385434146,1757847042944,-480.46492733,0.00021917,2]
[385434147,1757847042953,-480.0,0.00021917,2]
[385434148,1757847042963,-480.0,0.00021917,2]
[385434149,1757847042972,-565.34,0.00021917,2]
[385434150,1757847042981,-480.0,0.00021917,2]
[385434151,1757847042990,-480.0,0.00021917,2]
[385434152,1757847042999,-495.71469468,0.00021917,2]
[385434153,1757847043010,-480.0,0.00021917,2]
[385434154,1757847043021,-500.0,0.00021917,2]
[385434155,1757847043032,-500.0,0.00021917,2]
[385434156,1757847043042,-500.0,0.00021917,2]
[385434157,1757847043054,-500.0,0.00021917,2]
[385434158,1757847043063,-480.0,0.00021917,2]
[385434159,1757847043072,-500.0,0.00021917,2]
[385434160,1757847043081,-500.0,0.00021917,2]
[385434162,1757847043090,-500.0,0.00021917,2]
[385434163,1757847043101,-618.99466738,0.00021917,2]
[385434164,1757847043111,-481.79524283,0.00021917,2]
[385434165,1757847043120,-480.0,0.00021917,2]
[385434166,1757847043129,-1288.99,0.00021917,2]
[385434167,1757847043138,-480.0,0.00021917,2]
[385434168,1757847043148,-480.0,0.00021917,2]
[385434169,1757847043158,-551.33,0.00021917,2]
[385434170,1757847043167,-481.38526896,0.00021917,2]
[385434171,1757847043176,-480.0,0.00021917,2]
[385434172,1757847043185,-480.0,0.00021917,2]
[385434173,1757847043194,-480.0,0.00021917,2]
[385434174,1757847043204,-442.48643989,0.00021917,2]
[385434175,1757847043213,-480.53908601,0.00021917,2]
[385434176,1757847043222,-480.0,0.00021917,2]
[385434177,1757847043231,-480.0,0.00021917,2]
[385434178,1757847043240,-1380.36,0.00021917,2]
[385434179,1757847043250,-489.60082787,0.00021917,2]
[385434180,1757847043259,-480.0,0.00021917,2]
[385434181,1757847043268,-480.0,0.00021917,2]
[385434182,1757847043277,-462.55660117,0.00021917,2]
[385434183,1757847043287,-480.77287843,0.00021917,2]
[385434184,1757847043298,-480.0,0.00021917,2]
[385434185,1757847043307,-480.0,0.00021917,2]
[385434186,1757847043316,-480.0,0.00021917,2]
[385434187,1757847043327,-480.0,0.00021917,2]
[385434188,1757847043337,-480.921755,0.00021917,2]
[385434189,1757847043346,-480.0,0.00021917,2]
[385434190,1757847043355,-482.62096798,0.00021917,2]
[385434191,1757847043364,-480.0,0.00021917,2]
[385434192,1757847043373,-480.0,0.00021917,2]
[385434193,1757847043384,-483.37612928,0.00021917,2]
[385434194,1757847043394,-480.0,0.00021917,2]
[385434195,1757847043403,-486.23172192,0.00021917,2]
[385434196,1757847043412,-846.21,0.00021917,2]
[385434197,1757847043421,-480.0,0.00021917,2]
[385434198,1757847043431,-480.0,0.00021917,2]
[385434199,1757847043441,-723.75,0.00021917,2]
[385434200,1757847043451,-480.0,0.00021917,2]
[385434201,1757847043460,-893.09,0.00021917,2]
[385434202,1757847043469,-499.66,0.00021917,2]
[385434203,1757847043479,-894.71,0.00021917,2]
[385434204,1757847043487,-480.0,0.00021917,2]
[385434205,1757847043496,-480.0,0.00021917,2]
[385434206,1757847043505,-490.22513463,0.00021917,2]
[385434207,1757847043514,-480.0,0.00021917,2]
[385434208,1757847043523,-490.40895312,0.00021917,2]
[385434209,1757847043532,-480.0,0.00021917,2]
[385434210,1757847043542,-480.0,0.00021917,2]
[385434211,1757847043551,-480.0,0.00021917,2]
[385434212,1757847043560,-278.7153555,0.00021917,2]
[385434213,1757847043569,-480.0,0.00021917,2]
[385434214,1757847043579,-480.0,0.00021917,2]
[385434215,1757847043587,-750.32,0.00021917,2]
[385434216,1757847043596,-494.01621461,0.00021917,2]
[385434217,1757847043605,-481.33763115,0.00021917,2]
[385434218,1757847043614,-485.14174075,0.00021917,2]
[385434219,1757847043623,-480.0,0.00021917,2]
[385434220,1757847043632,-151.0,0.00021917,2]
[385434221,1757847043642,-151.0,0.00021917,2]
[385434222,1757847043651,-648.31,0.00021917,2]
[385434223,1757847043660,-151.0,0.00021917,2]
[385434224,1757847043669,-480.0,0.00021917,2]
[385434225,1757847043678,-480.0,0.00021917,2]
[385434226,1757847043687,-151.0,0.00021917,2]
[385434227,1757847043696,-480.0,0.00021917,2]
[385434228,1757847043705,-151.0,0.00021917,2]
[385434229,1757847043714,-151.0,0.00021917,2]
[385434230,1757847043724,-480.0,0.00021917,2]
[385434231,1757847043735,-480.0,0.00021917,2]
[385434232,1757847043746,-480.78474976,0.00021917,2]
[385434233,1757847043756,-480.0,0.00021917,2]
[385434234,1757847043765,-163.049832,0.00021917,2]
[385434235,1757847043774,-480.0,0.00021917,2]
[385434236,1757847043783,-480.88721694,0.00021917,2]
[385434237,1757847043792,-493.64009434,0.00021917,2]
[385434238,1757847043801,-480.0,0.00021917,2]
[385434239,1757847043810,-481.2597782,0.00021917,2]
[385434240,1757847043819,-487.48273411,0.00021917,2]
[385434241,1757847043830,-480.0,0.00021917,2]
[385434242,1757847043839,-480.0,0.00021917,2]
[385434243,1757847043848,-532.75868246,0.00021917,2]
[385434244,1757847043857,-480.0,0.00021917,2]
[385434245,1757847043867,-480.0,0.00021917,2]
[385434246,1757847043879,-482.11812156,0.00021917,2]
[385434247,1757847043890,-480.0,0.00021917,2]
[385434248,1757847043900,-480.0,0.00021917,2]
[385434249,1757847044019,-728.38,0.00021917,2]
[385434250,1757847044043,-480.0,0.00021917,2]
[385434251,1757847044052,-480.0,0.00021917,2]
[385434252,1757847044062,-480.0,0.00021917,2]
[385434253,1757847044071,-151.0,0.00021917,2]
[385434254,1757847044080,-1003.85,0.00021917,2]
[385434255,1757847044089,-151.0,0.00021917,2]
[385434256,1757847044099,-480.0,0.00021917,2]
[385434257,1757847044108,-480.0,0.00021917,2]
[385434258,1757847044117,-2478.43,0.00021917,2]
[385434259,1757847044126,-1061.43,0.00021917,2]
[385434260,1757847044135,-481.13565685,0.00021917,2]
[385434261,1757847044144,-480.0,0.00021917,2]
[385434262,1757847044154,-495.36510968,0.00021917,2]
[385434263,1757847044163,-480.0,0.00021917,2]
[385434264,1757847044173,-480.0,0.00021917,2]
[385434265,1757847044182,-1247.64,0.00021917,2]
[385434266,1757847044192,-481.0069371,0.00021917,2]
[385434267,1757847044201,-480.0,0.00021917,2]
[385434268,1757847044210,-480.0,0.00021917,2]
[385434269,1757847044220,-480.0,0.00021917,2]
[385434270,1757847044229,-480.0,0.00021917,2]
[385434271,1757847044238,-1035.36,0.00021917,2]
[385434272,1757847044247,-480.36280551,0.00021917,2]
[385434273,1757847044256,-481.45111547,0.00021917,2]
[385434274,1757847044265,-480.0,0.00021917,2]
[385434275,1757847044274,-480.0,0.00021917,2]
[385434276,1757847044283,-1342.3,0.00021917,2]
[385434277,1757847044292,-480.0,0.00021917,2]
[385434278,1757847044302,-480.0,0.00021917,2]
[385434279,1757847044311,-480.0,0.00021917,2]
[385434280,1757847044320,-348.3367903,0.00021917,2]
[385434281,1757847044329,-480.0,0.00021917,2]
[385434282,1757847044338,-480.0,0.00021917,2]
[385434283,1757847044347,-480.0,0.00021917,2]
[385434284,1757847044356,-480.0,0.00021917,2]
[385434285,1757847044366,-1083.54,0.00021917,2]
[385434286,1757847044375,-6258.65,0.00021917,2]
[385434287,1757847044384,-482.08890952,0.00021917,2]
[385434288,1757847044393,-561.02,0.00021917,2]
[385434289,1757847044403,-480.0,0.00021917,2]
[385434290,1757847044412,-1047.27,0.00021917,2]
[385434291,1757847044421,-689.3,0.00021917,2]
[385434292,1757847044431,-480.0,0.00021917,2]
[385434293,1757847044440,-480.0,0.00021917,2]
[385434294,1757847044450,-480.0,0.00021917,2]
[385434295,1757847044468,-480.0,0.00021917,2]
[385434296,1757847044492,-480.0,0.00021917,2]
[385434297,1757847044517,-480.0,0.00021917,2]
[385434298,1757847044528,-1562.82,0.00021917,2]
[385434299,1757847044537,-2933.76,0.00021917,2]
[385434300,1757847044546,-480.0,0.00021917,2]
[385434301,1757847044555,-480.0,0.00021917,2]
[385434302,1757847044564,-480.0,0.00021917,2]
[385434303,1757847044573,-151.0,0.00021917,2]
[385434304,1757847044582,-480.0,0.00021917,2]
[385434305,1757847044591,-151.0,0.00021917,2]
[385434306,1757847044600,-3464.17,0.00021917,2]
[385434307,1757847044609,-480.0,0.00021917,2]
[385434308,1757847044618,-151.0,0.00021917,2]
[385434309,1757847044627,-480.0,0.00021917,2]
[385434310,1757847044637,-598.87,0.00021917,2]
[385434311,1757847044646,-480.0,0.00021917,2]
[385434312,1757847044654,-480.0,0.00021917,2]
[385434313,1757847044663,-550.62,0.00021917,2]
[385434314,1757847044672,-481.08429304,0.00021917,2]
[385434315,1757847044682,-788.82,0.00021917,2]
[385434316,1757847044691,-480.0,0.00021917,2]
[385434317,1757847044700,-430.42,0.00021917,2]
[385434318,1757847044709,-480.0,0.00021917,2]
[385434319,1757847044719,-480.0,0.00021917,2]
[385434320,1757847044727,-480.0,0.00021917,2]
[385434321,1757847044736,-480.0,0.00021917,2]
[385434322,1757847044745,-480.0,0.00021917,2]
[385434323,1757847044754,-480.0,0.00021917,2]
[385434324,1757847044763,-1534.77,0.00021917,2]
[385434325,1757847044773,-1256.64,0.00021917,2]
[385434326,1757847044782,-480.25086954,0.00021917,2]
[385434327,1757847044791,-638.54,0.00021917,2]
[385434328,1757847044800,-687.67,0.00021917,2]
[385434329,1757847044810,-480.0,0.00021917,2]
[385434330,1757847044819,-480.125079,0.00021917,2]
[385434331,1757847044828,-539.46,0.00021917,2]
[385434332,1757847044837,-480.0,0.00021917,2]
[385434333,1757847044847,-815.55,0.00021917,2]
[385434334,1757847044857,-30768.78,0.00021917,2]
[385434335,1757847044866,-480.0,0.00021917,2]
[385434336,1757847044876,-336.26840041,0.00021917,2]
[385434337,1757847044885,-1775.55,0.00021917,2]
[385434338,1757847044894,-481.40957163,0.00021917,2]
[385434339,1757847044903,-949.06,0.00021917,2]
[385434340,1757847044913,-1383.6,0.00021917,2]
[385434341,1757847044922,-1538.45,0.00021917,2]
[385434342,1757847044931,-476.63675022,0.00021917,2]
[385434343,1757847044940,-480.0,0.00021917,2]
[385434344,1757847044949,-483.16271752,0.00021917,2]
[385434345,1757847044968,-480.0,0.00021917,2]
[385434346,1757847044976,-480.0,0.00021917,2]
[385434347,1757847044985,-480.0,0.00021917,2]
[385434348,1757847044994,-480.0,0.00021917,2]
[385434349,1757847045003,-8068.79,0.00021917,2]
[385434350,1757847045012,-480.0,0.00021917,2]
[385434351,1757847045025,-480.29324435,0.00021917,2]
[385434352,1757847045038,-480.0,0.00021917,2]
[385434353,1757847045048,-480.0,0.00021917,2]
[385434354,1757847045058,-680.89,0.00021917,2]
[385434355,1757847045067,-481.62278203,0.00021917,2]
[385434356,1757847045076,-348.22884602,0.00021917,2]
[385434357,1757847045085,-478.36916472,0.00021917,2]
[385434358,1757847045094,-553.55,0.00021917,2]
[385434359,1757847045103,-914.53,0.00021917,2]
[385434360,1757847045113,-918.99,0.00021917,2]
[385434361,1757847045122,-480.0,0.00021917,2]
[385434362,1757847045131,-625.99713881,0.00021917,2]
[385434363,1757847045141,-3748.84,0.00021917,2]
[385434364,1757847045150,-481.13987387,0.00021917,2]
[385434365,1757847045159,-480.0,0.00021917,2]
[385434366,1757847045168,-481.08361683,0.00021917,2]
[385434367,1757847045178,-480.0,0.00021917,2]
[385434368,1757847045187,-480.0,0.00021917,2]
[385434369,1757847045197,-151.0,0.00021917,2]
[385434370,1757847045206,-151.0,0.00021917,2]
[385434371,1757847045215,-3096.22,0.00021917,2]
[385434372,1757847045224,-1019.33,0.00021917,2]
[385434373,1757847045233,-597.94,0.00021917,2]
[385434374,1757847045243,-480.0,0.00021917,2]
[385434375,1757847045253,-480.0,0.00021917,2]
[385434376,1757847045262,-500.0,0.00021917,2]
[385434377,1757847045271,-500.0,0.00021917,2]
[385434378,1757847045294,-500.0,0.00021917,2]
[385434379,1757847045304,-302.01221425,0.00021917,2]
[385434380,1757847045313,-480.0,0.00021917,2]
[385434381,1757847045322,-500.0,0.00021917,2]
[385434382,1757847045331,-480.0,0.00021917,2]
[385434383,1757847045341,-220.52901567,0.00021917,2]
[385434384,1757847045350,-989.45,0.00021917,2]
[385434385,1757847045359,-486.06680613,0.00021917,2]
[385434386,1757847045368,-1688.37,0.00021917,2]
[385434387,1757847045377,-1584.05,0.00021917,2]
[385434388,1757847045386,-480.0,0.00021917,2]
[385434389,1757847045395,-1102.07,0.00021917,2]
[385434390,1757847045404,-489.8432132,0.00021917,2]
[385434391,1757847045414,-325.78768103,0.00021917,2]
[385434392,1757847045423,-1154.27,0.00021917,2]
[385434393,1757847045433,-257.27411566,0.00021917,2]
[385434394,1757847045442,-480.0,0.00021917,2]
[385434395,1757847045451,-480.0,0.00021917,2]
[385434396,1757847045460,-895.14,0.00021917,2]
[385434397,1757847045469,-3365.81,0.00021917,2]
[385434398,1757847045479,-480.0,0.00021917,2]
[385434399,1757847045488,-1642.2,0.00021917,2]
[385434400,1757847045498,-480.0,0.00021917,2]
[385434401,1757847045507,-610.9934371,0.00021917,2]
[385434402,1757847045516,-480.0,0.00021917,2]
[385434403,1757847045526,-803.43,0.00021917,2]
[385434404,1757847045535,-480.0,0.00021917,2]
[385434405,1757847045544,-446.26169774,0.00021917,2]
[385434406,1757847045553,-480.0,0.00021917,2]
[385434407,1757847045561,-2488.03,0.00021917,2]
[385434408,1757847045570,-502.07475793,0.00021917,2]
[385434409,1757847045579,-206.12387413,0.00021917,2]
[385434410,1757847045588,-480.0,0.00021917,2]
[385434411,1757847045598,-336.86440572,0.00021917,2]
[385434412,1757847045607,-4456.36,0.00021917,2]
[385434413,1757847045616,-481.28712497,0.00021917,2]
[385434414,1757847045625,-481.18771583,0.00021917,2]
[385434415,1757847045634,-480.0,0.00021917,2]
[385434416,1757847045643,-415.58606368,0.00021917,2]
[385434417,1757847045653,-480.0,0.00021917,2]
[385434418,1757847045662,-2921.49,0.00021917,2]
[385434419,1757847045671,-480.0,0.00021917,2]
[385434420,1757847045680,-403.27897225,0.00021917,2]
[385434421,1757847045690,-480.0,0.00021917,2]
[385434422,1757847045700,-480.0,0.00021917,2]
[385434423,1757847045709,-480.0,0.00021917,2]
[385434424,1757847045718,-480.0,0.00021917,2]
[385434425,1757847045727,-480.0,0.00021917,2]
[385434426,1757847045736,-480.0,0.00021917,2]
[385434427,1757847045745,-480.0,0.00021917,2]
[385434428,1757847045754,-480.0,0.00021917,2]
[385434429,1757847045764,-481.27352866,0.00021917,2]
[385434430,1757847045773,-480.0,0.00021917,2]
[385434431,1757847045783,-480.66477374,0.00021917,2]
[385434432,1757847045792,-480.0,0.00021917,2]
[385434433,1757847045801,-480.0,0.00021917,2]
[385434434,1757847045810,-7023.49,0.00021917,2]
[385434435,1757847045820,-480.0,0.00021917,2]
[385434436,1757847045829,-480.0,0.00021917,2]
[385434437,1757847045838,-485.12697769,0.00021917,2]
[385434438,1757847045847,-659.56,0.00021917,2]
[385434439,1757847045858,-645.98,0.00021917,2]
[385434440,1757847045866,-480.0,0.00021917,2]
[385434442,1757847045876,-480.0,0.00021917,2]
[385434443,1757847045885,-480.0,0.00021917,2]
[385434444,1757847045893,-485.79393001,0.00021917,2]
[385434445,1757847045903,-480.0,0.00021917,2]
[385434446,1757847045912,-958.12,0.00021917,2]
[385434448,1757847045922,-500.0,0.00021917,2]
[385434449,1757847045931,-370.0,0.00021917,2]
[385434450,1757847045940,-480.0,0.00021917,2]
[385434451,1757847045949,-168.30596897,0.00021917,2]
[385434452,1757847045958,-480.0,0.00021917,2]
[385434453,1757847045968,-4485.92,0.00021917,2]
[385434454,1757847045977,-480.0,0.00021917,2]
[385434455,1757847045986,-480.97665309,0.00021917,2]
[385434456,1757847045995,-480.0,0.00021917,2]
[385434457,1757847046005,-495.49335694,0.00021917,2]
[385434458,1757847046015,-480.0,0.00021917,2]
[385434459,1757847046030,-480.0,0.00021917,2]